bitfinex-derivatives/quotes_BTCF0:USTF0_20241125
["timestamp","ask_amount","ask_price","bid_price","bid_amount"]
[1732554323611,0.02510772,95540.0,95539.0,0.4356344]
[1732554324007,0.01520475,95540.0,95539.0,0.77057454]
[1732554324312,0.00012395,95568.0,95540.0,0.314]
[1732554324506,0.3634,95567.0,95552.0,0.3608]
[1732554324702,0.3608,95567.0,95559.0,0.0008]
[1732554325111,0.3608,95567.0,95550.0,0.21879653]
[1732554325311,0.3608,95567.0,95548.0,0.3608]
[1732554325613,0.0004,95551.0,95549.0,0.21168]
[1732554326304,0.0004,95551.0,95548.0,0.03126259]
[1732554326503,0.0004,95551.0,95539.0,0.38182198]
[1732554326504,0.0004,95551.0,95541.0,0.0403]
[1732554326814,0.0004,95549.0,95548.0,0.3608]
[1732554327112,0.0024,95551.0,95550.0,0.05232]
[1732554327312,0.004,95567.0,95550.0,0.31396]
[1732554327513,0.001,95567.0,95563.0,0.3608]
[1732554327719,0.001,95567.0,95557.0,0.3608]
[1732554328017,0.00012395,95568.0,95557.0,0.3608]
[1732554328018,0.0004,95558.0,95557.0,0.3608]
[1732554328313,0.001,95551.0,95550.0,0.0004]
[1732554328708,0.0014,95551.0,95550.0,0.0004]
[1732554329011,0.0004,95551.0,95550.0,0.0004]
[1732554329213,0.0004,95551.0,95550.0,0.03143347]
[1732554329404,0.0004,95551.0,95550.0,0.0004]
[1732554329807,0.3608,95561.0,95550.0,0.0004]
[1732554330002,0.001,95551.0,95550.0,0.0004]
[1732554331017,0.001,95551.0,95550.0,0.03215584]
[1732554331412,0.003,95551.0,95550.0,0.03215584]
[1732554331620,0.004,95551.0,95550.0,0.03215584]
[1732554332513,0.001,95551.0,95550.0,0.03215584]
[1732554332710,0.004,95551.0,95550.0,0.03215584]
[1732554333019,0.003,95551.0,95550.0,0.05309398]
[1732554333216,0.004,95551.0,95550.0,0.02133814]
[1732554334928,0.004,95551.0,95550.0,0.07365814]
[1732554335411,0.12235762,95567.0,95558.0,0.052316]
[1732554335822,0.00012395,95568.0,95558.0,0.052316]
[1732554336017,0.00012395,95568.0,95557.0,0.14194861]
[1732554336218,0.00012395,95568.0,95567.0,0.0012]
[1732554336412,0.05100644,95568.0,95550.0,0.02393814]
[1732554336613,0.3608,95551.0,95550.0,0.05331316]
[1732554337026,0.3638,95551.0,95550.0,0.05331316]
[1732554337321,0.41469244,95551.0,95550.0,0.03237502]
[1732554337523,0.41169244,95551.0,95550.0,0.00422307]
[1732554337821,0.41169244,95551.0,95540.0,0.19427461]
[1732554338019,0.1846231,95549.0,95541.0,0.07135157]
[1732554338323,0.0004,95542.0,95541.0,0.07135157]
[1732554338715,0.0004,95542.0,95541.0,0.03105157]
[1732554338916,0.0004,95542.0,95539.0,0.02102198]
[1732554339120,0.05089244,95541.0,95539.0,0.02102198]
[1732554339321,0.05129244,95540.0,95539.0,0.07334798]
[1732554340224,0.05129244,95540.0,95539.0,0.05185683]
[1732554340819,0.05429244,95540.0,95539.0,0.05185683]
[1732554341720,0.02375197,95540.0,95539.0,0.05185683]
[1732554342321,0.02375197,95540.0,95539.0,0.11194992]
[1732554342322,0.15802812,95540.0,95539.0,0.11194992]
[1732554342525,0.004,95540.0,95539.0,0.11194992]
[1732554342724,0.15802812,95540.0,95539.0,0.11194992]
[1732554342919,0.15802812,95540.0,95539.0,0.05185683]
[1732554343121,0.004,95540.0,95539.0,0.05185683]
[1732554343329,0.004,95540.0,95539.0,0.11199555]
[1732554343517,0.004,95540.0,95539.0,0.05185683]
[1732554343827,0.15402812,95542.0,95540.0,0.052326]
[1732554344221,0.15402812,95545.0,95541.0,0.0004]
[1732554344419,0.15402812,95546.0,95544.0,0.052324]
[1732554344624,0.15402812,95546.0,95544.0,0.052724]
[1732554344821,0.15402812,95546.0,95545.0,0.0004]
[1732554345021,0.15402812,95547.0,95545.0,0.0004]
[1732554345221,0.3608,95561.0,95545.0,0.0004]
[1732554345222,0.15402812,95552.0,95545.0,0.0004]
[1732554345519,0.15402812,95552.0,95551.0,0.0004]
[1732554346025,0.1846231,95557.0,95551.0,0.0004]
[1732554346230,0.3608,95561.0,95551.0,0.0004]
[1732554346231,0.1846231,95555.0,95551.0,0.0004]
[1732554346439,0.1846231,95555.0,95549.0,0.05232]
[1732554346728,0.0004,95550.0,95549.0,0.05232]
[1732554347114,0.15438764,95550.0,95549.0,0.05232]
[1732554347328,0.0004,95550.0,95549.0,0.05232]
[1732554347525,0.0004,95550.0,95542.0,0.3608]
[1732554347526,0.001,95552.0,95542.0,0.3608]
[1732554347729,0.001,95552.0,95543.0,0.0599083]
[1732554347730,0.1232086,95547.0,95543.0,0.0599083]
[1732554347939,0.1232086,95547.0,95545.0,0.052323]
[1732554348129,0.1232086,95547.0,95546.0,0.0599083]
[1732554348427,0.004,95550.0,95549.0,0.052321]
[1732554348633,0.004,95550.0,95549.0,0.1122293]
[1732554348826,0.003,95550.0,95549.0,0.1126293]
[1732554349023,0.1232086,95558.0,95557.0,0.052316]
[1732554349222,0.1232086,95561.0,95557.0,0.62742414]
[1732554349422,0.1232086,95563.0,95561.0,0.052314]
[1732554349627,0.20672,95584.0,95557.0,0.92872]
[1732554349628,0.1232086,95564.0,95563.0,0.052313]
[1732554349931,0.1846231,95577.0,95563.0,0.052713]
[1732554350129,0.12323424,95567.0,95566.0,0.3608]
[1732554350328,0.12335819,95568.0,95567.0,0.052311]
[1732554350522,0.12335819,95568.0,95567.0,0.11221178]
[1732554350523,0.00012395,95568.0,95567.0,0.11221178]
[1732554351323,0.00012395,95568.0,95567.0,0.052311]
[1732554351632,0.00212395,95568.0,95567.0,0.052311]
[1732554352632,0.00312395,95568.0,95567.0,0.052311]
[1732554352833,0.00312395,95568.0,95567.0,0.08412189]
[1732554358928,0.00312395,95568.0,95567.0,0.03181089]
[1732554359127,0.00212395,95568.0,95563.0,0.02093304]
[1732554359437,0.00312395,95568.0,95563.0,0.02093304]
[1732554359838,0.12306988,95564.0,95563.0,0.02093304]
[1732554360140,0.12307144,95564.0,95563.0,0.02093304]
[1732554360339,0.12307144,95564.0,95552.0,0.20668]
[1732554360340,0.05088179,95564.0,95552.0,0.20668]
[1732554360530,0.54540328,95557.0,95552.0,0.20668]
[1732554360839,0.0004,95553.0,95550.0,0.1257669]
[1732554361140,0.0004,95551.0,95550.0,0.03116937]
[1732554361324,0.05128374,95551.0,95549.0,0.259]
[1732554361635,0.54540328,95557.0,95549.0,0.259]
[1732554361636,0.03128374,95550.0,95549.0,0.29084143]
[1732554361831,0.18500328,95550.0,95549.0,0.08416143]
[1732554362033,0.0004,95550.0,95549.0,0.08416143]
[1732554362230,0.18488825,95550.0,95549.0,0.08416143]
[1732554362434,0.18488825,95550.0,95549.0,0.03184143]
[1732554362435,0.0004,95550.0,95549.0,0.03184143]
[1732554362739,0.0004,95550.0,95547.0,0.052322]
[1732554362740,0.1848855,95550.0,95547.0,0.052322]
[1732554363137,0.0004,95548.0,95547.0,0.052322]
[1732554364134,0.0004,95548.0,95544.0,0.20668]
[1732554364435,0.001,95550.0,95544.0,0.20668]
[1732554364642,0.002,95548.0,95546.0,0.052322]
[1732554364828,0.00153996,95548.0,95546.0,0.052322]
[1732554365027,0.00253996,95548.0,95546.0,0.052322]
[1732554365739,0.00253996,95548.0,95544.0,0.20668]
[1732554366433,0.00253996,95548.0,95543.0,0.12590508]
[1732554366628,0.00253996,95548.0,95543.0,0.03130755]
[1732554366629,0.1844855,95547.0,95543.0,0.03130755]
[1732554366829,0.0004,95544.0,95539.0,8.184e-05]
[1732554367037,0.3608,95540.0,95539.0,8.184e-05]
[1732554367244,0.3612,95540.0,95539.0,0.03156455]
[1732554367448,0.3612,95540.0,95539.0,8.184e-05]
[1732554368135,0.3622,95540.0,95539.0,8.184e-05]
[1732554368643,0.3642,95540.0,95539.0,8.184e-05]
[1732554368838,0.3632,95540.0,95539.0,0.03213]
[1732554369042,0.3642,95540.0,95539.0,0.03213]
[1732554369835,0.3622,95540.0,95539.0,0.03213]
[1732554370137,0.0034,95540.0,95539.0,0.03213]
[1732554370341,0.0024,95540.0,95539.0,0.03213]
[1732554370529,0.0034,95540.0,95539.0,0.03213]
[1732554371132,0.0024,95540.0,95539.0,0.03213]
[1732554371341,0.0034,95540.0,95539.0,0.03213]
[1732554371645,0.0034,95540.0,95539.0,0.39293]
[1732554372036,0.0014,95540.0,95539.0,0.39293]
[1732554372343,0.0034,95540.0,95539.0,0.39293]
[1732554373343,0.0026,95557.0,95539.0,0.70693]
[1732554373644,0.09212832,95559.0,95547.0,0.45539753]
[1732554373846,0.09212832,95560.0,95559.0,0.052315]
[1732554374046,0.09212832,95561.0,95559.0,0.052315]
[1732554374431,0.09212832,95562.0,95560.0,0.053114]
[1732554374745,0.09212832,95562.0,95560.0,0.0008]
[1732554374934,0.09212832,95562.0,95561.0,0.0008]
[1732554375535,0.0921428,95562.0,95561.0,0.0008]
[1732554375731,0.12288197,95567.0,95561.0,0.0008]
[1732554375942,0.12288197,95566.0,95561.0,0.0008]
[1732554376140,0.12288197,95566.0,95560.0,0.0008]
[1732554376442,0.00012395,95568.0,95560.0,0.0008]
[1732554376443,0.413514,95561.0,95560.0,0.0008]
[1732554378737,0.3622,95561.0,95549.0,0.0026]
[1732554379041,0.09211157,95550.0,95543.0,0.052324]
[1732554379245,0.09210922,95548.0,95543.0,0.052324]
[1732554379542,0.45330922,95544.0,95539.0,0.03188285]
[1732554379740,0.45330922,95544.0,95540.0,0.052326]
[1732554379940,0.45290922,95544.0,95540.0,0.052326]
[1732554380247,0.45290922,95544.0,95539.0,0.03188285]
[1732554380552,0.09210922,95542.0,95539.0,0.03188285]
[1732554380744,0.3608,95544.0,95539.0,0.03188285]
[1732554380745,0.45290922,95544.0,95539.0,0.03188285]
[1732554380952,0.052325,95541.0,95539.0,0.03188285]
[1732554381649,0.122834,95543.0,95539.0,0.03188285]
[1732554381841,0.001,95542.0,95539.0,0.03188285]
[1732554382250,0.123834,95542.0,95539.0,0.03188285]
[1732554382552,0.122834,95540.0,95539.0,0.03188285]
[1732554382943,0.122834,95540.0,95528.0,0.0026]
[1732554382944,0.3608,95540.0,95528.0,0.0026]
[1732554383150,0.3608,95540.0,95523.0,0.02094398]
[1732554383151,0.3608,95529.0,95523.0,0.02094398]
[1732554383448,0.3608,95529.0,95523.0,0.07327898]
[1732554383449,0.09246576,95524.0,95523.0,0.07327898]
[1732554383651,0.0004,95524.0,95523.0,0.07327898]
[1732554383851,0.0004,95524.0,95523.0,0.07340601]
[1732554384247,0.0004,95524.0,95523.0,0.02107101]
[1732554384955,0.0014,95524.0,95523.0,0.02507101]
[1732554385552,0.0014,95524.0,95523.0,0.03407101]
[1732554385553,0.09450658,95524.0,95523.0,0.03407101]
[1732554385745,0.09450658,95524.0,95523.0,0.08640601]
[1732554385746,0.0024,95524.0,95523.0,0.08640601]
[1732554385946,0.3608,95529.0,95523.0,0.08640601]
[1732554385947,0.3608,95529.0,95528.0,0.052332]
[1732554386248,0.3608,95529.0,95528.0,0.052732]
[1732554386441,0.3608,95529.0,95528.0,0.0004]
[1732554387055,0.3618,95529.0,95528.0,0.03111093]
[1732554387254,0.3638,95529.0,95528.0,0.0004]
[1732554388544,0.3628,95529.0,95528.0,0.0004]
[1732554388740,0.3618,95529.0,95528.0,0.0004]
[1732554388944,0.3638,95529.0,95528.0,0.0004]
[1732554390041,0.3628,95529.0,95528.0,0.0004]
[1732554390246,0.37210717,95529.0,95523.0,0.01942279]
[1732554390451,0.00930717,95528.0,95523.0,0.01942279]
[1732554390655,0.0004,95524.0,95523.0,0.01942279]
[1732554390862,0.00970717,95524.0,95523.0,0.01942279]
[1732554391048,0.3628,95529.0,95523.0,0.01942279]
[1732554391353,0.3628,95529.0,95528.0,0.0004]
[1732554391856,0.3618,95529.0,95528.0,0.0004]
[1732554392055,0.3618,95529.0,95528.0,0.03217924]
[1732554392355,0.3618,95529.0,95528.0,0.0004]
[1732554392547,0.3628,95529.0,95528.0,0.0004]
[1732554394259,0.002,95529.0,95528.0,0.20384]
[1732554394562,0.001,95529.0,95528.0,0.20384]
[1732554395459,0.0026,95541.0,95531.0,0.052331]
[1732554395752,0.0026,95541.0,95528.0,0.84492]
[1732554395753,0.36601089,95549.0,95546.0,0.052322]
[1732554395954,0.36237088,95549.0,95547.0,0.0412]
[1732554396156,0.36237088,95549.0,95548.0,0.0004]
[1732554396855,0.41469188,95549.0,95548.0,0.0004]
[1732554397364,0.41469188,95549.0,95548.0,0.03134825]
[1732554397657,0.41469188,95549.0,95548.0,0.0004]
[1732554397958,0.36237088,95549.0,95548.0,0.0004]
[1732554398154,0.36337088,95549.0,95548.0,0.0004]
[1732554398654,0.3618,95549.0,95548.0,0.0004]
[1732554401065,0.3618,95549.0,95548.0,0.03213321]
[1732554402564,0.001,95549.0,95548.0,0.26779321]
[1732554403862,0.001,95549.0,95548.0,0.32011421]
[1732554406856,0.0026,95563.0,95562.0,0.052314]
[1732554407163,0.00012395,95568.0,95567.0,0.052311]
[1732554408069,0.00012395,95568.0,95567.0,0.052711]
[1732554408767,0.00112395,95568.0,95567.0,0.052711]
[1732554409067,0.00112395,95568.0,95567.0,0.08473733]
[1732554410959,0.00417021,95583.0,95582.0,0.052303]
[1732554411164,0.00157021,95583.0,95582.0,0.052303]
[1732554411365,0.00125,95590.0,95582.0,0.052303]
[1732554411366,0.00125,95590.0,95582.0,0.0004]
[1732554411670,0.00125,95590.0,95589.0,0.0004]
[1732554411860,0.367388,95590.0,95589.0,0.0004]
[1732554412065,0.052302,95583.0,95582.0,0.00603945]
[1732554412263,0.052302,95583.0,95567.0,0.0026]
[1732554412264,0.60859617,95583.0,95567.0,0.0026]
[1732554412468,0.60859617,95583.0,95540.0,0.09459753]
[1732554412469,0.052315,95560.0,95558.0,0.0026]
[1732554412658,0.3608,95559.0,95557.0,0.03071303]
[1732554412860,0.3612,95559.0,95550.0,0.09459753]
[1732554413067,0.0004,95558.0,95550.0,0.09459753]
[1732554413259,0.3612,95551.0,95550.0,0.09459753]
[1732554413465,0.3612,95551.0,95549.0,0.03195678]
[1732554413466,0.41352,95551.0,95549.0,0.03195678]
[1732554413970,0.0004,95550.0,95549.0,0.03195678]
[1732554415474,0.0014,95550.0,95549.0,0.03195678]
[1732554415959,0.05372,95550.0,95549.0,0.03195678]
[1732554417066,0.0014,95550.0,95549.0,0.03195678]
[1732554418868,0.0004,95550.0,95549.0,0.03195678]
[1732554419075,0.0014,95550.0,95549.0,0.03195678]
[1732554421160,0.0004,95550.0,95549.0,0.03195678]
[1732554421367,0.0014,95550.0,95549.0,0.03195678]
[1732554421763,0.0004,95550.0,95549.0,0.03195678]
[1732554421970,0.0014,95550.0,95549.0,0.03195678]
[1732554422877,0.3608,95565.0,95564.0,0.052313]
[1732554423176,0.3608,95565.0,95564.0,0.053113]
[1732554423374,0.043,95582.0,95564.0,0.3616]
[1732554423375,0.0026,95582.0,95564.0,0.3616]
[1732554423568,0.0026,95587.0,95572.0,0.3608]
[1732554423768,0.3623701,95592.0,95581.0,0.053103]
[1732554423963,0.3623701,95592.0,95577.0,0.09459753]
[1732554423964,0.09459753,95591.0,95586.0,0.0008]
[1732554424167,0.09459753,95591.0,95577.0,0.19056]
[1732554424576,0.0004,95578.0,95577.0,0.19056]
[1732554425265,0.3633701,95592.0,95578.0,0.052305]
[1732554425470,0.3623701,95592.0,95591.0,0.052298]
[1732554425664,0.3608,95592.0,95591.0,0.242858]
[1732554426071,0.3608,95592.0,95591.0,0.19056]
[1732554426866,7.494e-05,95594.0,95591.0,0.19056]
[1732554427281,7.494e-05,95594.0,95593.0,0.0012]
[1732554427678,0.31391494,95594.0,95593.0,0.0012]
[1732554427977,0.052304,95580.0,95579.0,0.0001347]
[1732554428180,0.726984,95580.0,95579.0,0.0001347]
[1732554428478,0.726984,95580.0,95543.0,0.00156977]
[1732554428479,0.052324,95544.0,95543.0,0.00156977]
[1732554428869,0.0004,95544.0,95543.0,0.03260501]
[1732554429068,0.0004,95544.0,95543.0,0.00156977]
[1732554429468,0.0004,95544.0,95543.0,0.00166441]
[1732554430171,0.0004,95544.0,95543.0,0.31409464]
[1732554430373,0.0004,95544.0,95543.0,0.35169464]
[1732554430777,0.0004,95544.0,95543.0,0.57422619]
[1732554430778,0.0014,95544.0,95543.0,0.57422619]
[1732554430970,0.0014,95544.0,95543.0,0.38366619]
[1732554431170,0.0014,95544.0,95543.0,0.26022619]
[1732554432482,0.0014,95544.0,95543.0,0.57422619]
[1732554432679,0.3608,95560.0,95543.0,0.57422619]
[1732554432881,0.3608,95560.0,95559.0,0.052315]
[1732554433081,0.3608,95572.0,95559.0,0.243275]
[1732554433280,0.3608,95572.0,95560.0,0.09459753]
[1732554434184,0.3608,95572.0,95571.0,0.0004]
[1732554434588,0.3618,95572.0,95571.0,0.0004]
[1732554437684,0.3608,95572.0,95571.0,0.0004]
[1732554437887,0.3618,95572.0,95571.0,0.0004]
[1732554438283,0.3608,95572.0,95571.0,0.0004]
[1732554438478,0.3618,95572.0,95571.0,0.0004]
[1732554439982,0.3608,95572.0,95571.0,0.0004]
[1732554440184,0.3618,95572.0,95571.0,0.0004]
[1732554440787,0.3608,95572.0,95571.0,0.0004]
[1732554440982,0.3618,95572.0,95571.0,0.0004]
[1732554442689,0.414108,95572.0,95571.0,0.0004]
[1732554443278,0.414108,95572.0,95571.0,7.228e-05]
[1732554443688,0.3618,95572.0,95571.0,7.228e-05]
[1732554443893,0.3608,95572.0,95571.0,7.228e-05]
[1732554444093,0.3618,95572.0,95571.0,7.228e-05]
[1732554444489,0.3608,95572.0,95571.0,7.228e-05]
[1732554444682,0.001,95572.0,95571.0,7.228e-05]
[1732554445393,0.0026,95577.0,95576.0,0.052306]
[1732554445584,0.0026,95582.0,95581.0,0.052303]
[1732554445783,0.12792073,95598.0,95590.0,0.052298]
[1732554445784,0.0026,95591.0,95590.0,0.052298]
[1732554445992,0.13052073,95598.0,95593.0,0.052297]
[1732554446189,0.12792073,95598.0,95593.0,0.049697]
[1732554446386,0.12792073,95598.0,95593.0,0.050097]
[1732554447494,0.00107494,95594.0,95593.0,0.050097]
[1732554449589,0.00107494,95594.0,95593.0,0.08141283]
[1732554450801,0.00107494,95594.0,95593.0,0.26601283]
[1732554453391,0.0004,95582.0,95581.0,0.00052817]
[1732554455297,0.49829222,95582.0,95581.0,0.00052817]
[1732554455488,0.72595542,95582.0,95581.0,0.00052817]
[1732554455698,0.72695542,95582.0,95581.0,0.00052817]
[1732554456695,0.72595542,95582.0,95581.0,0.00052817]
[1732554456895,0.72695542,95582.0,95581.0,0.00052817]
[1732554457092,0.41307542,95582.0,95581.0,0.00052817]
[1732554457297,0.41207542,95582.0,95581.0,0.00052817]
[1732554457595,0.3622,95582.0,95581.0,0.00052817]
[1732554458006,0.0014,95582.0,95581.0,0.00052817]
[1732554458696,0.0004,95582.0,95581.0,0.00052817]
[1732554458900,0.0014,95582.0,95581.0,0.00052817]
[1732554459202,0.0014,95582.0,95581.0,0.18508817]
[1732554459203,0.0004,95582.0,95581.0,0.18508817]
[1732554459398,0.0014,95582.0,95581.0,0.18508817]
[1732554460605,0.0014,95582.0,95581.0,0.49896817]
[1732554460802,7.494e-05,95594.0,95593.0,0.052297]
[1732554461201,7.494e-05,95594.0,95593.0,0.052697]
[1732554461706,7.494e-05,95594.0,95593.0,0.0004]
[1732554462101,0.00107494,95594.0,95593.0,0.052697]
[1732554462404,0.00107494,95594.0,95593.0,0.08394448]
[1732554462806,0.1252057,95607.0,95593.0,0.03164748]
[1732554463003,0.0026,95613.0,95612.0,0.052286]
[1732554463203,0.00105,95620.0,95612.0,0.66804]
[1732554463406,0.0026,95629.0,95619.0,0.3608]
[1732554463710,0.0026,95637.0,95630.0,0.052276]
[1732554463912,0.3608,95647.0,95631.0,0.18468547]
[1732554463913,0.0026,95644.0,95631.0,0.18468547]
[1732554464103,0.0026,95644.0,95631.0,0.18508547]
[1732554464411,0.3608,95647.0,95643.0,0.0004]
[1732554464708,0.3608,95647.0,95646.0,0.0004]
[1732554465210,0.67444,95647.0,95646.0,0.0004]
[1732554465410,0.67444,95647.0,95634.0,0.09459753]
[1732554465411,0.41164305,95647.0,95634.0,0.01699537]
[1732554465603,0.15319316,95639.0,95634.0,0.01699537]
[1732554465918,0.0004,95635.0,95634.0,0.01699537]
[1732554466112,0.0004,95635.0,95633.0,0.052275]
[1732554466505,0.12281346,95635.0,95633.0,0.052275]
[1732554466807,0.0004,95635.0,95633.0,0.052275]
[1732554467007,0.12241346,95637.0,95633.0,0.052275]
[1732554467008,0.0004,95634.0,95633.0,0.052275]
[1732554467601,0.0004,95634.0,95633.0,0.365955]
[1732554468030,0.0004,95634.0,95633.0,0.550475]
[1732554468403,0.3608,95647.0,95633.0,0.550475]
[1732554468608,0.15329382,95657.0,95633.0,0.550475]
[1732554468609,0.12234817,95653.0,95646.0,0.3608]
[1732554468808,0.00010066,95657.0,95656.0,0.052262]
[1732554469007,0.00010066,95657.0,95656.0,0.413062]
[1732554469208,0.00010066,95657.0,95656.0,0.413462]
[1732554470316,0.00156871,95674.0,95656.0,1.210382]
[1732554470613,0.15319316,95687.0,95664.0,0.45539753]
[1732554470817,0.15319316,95689.0,95673.0,0.09499753]
[1732554471008,0.15319316,95689.0,95673.0,0.0004]
[1732554471405,0.15319316,95693.0,95673.0,0.0004]
[1732554471614,0.052245,95689.0,95673.0,0.0004]
[1732554471817,0.15319316,95691.0,95673.0,0.0004]
[1732554472217,0.052249,95681.0,95673.0,0.0004]
[1732554472519,0.052251,95676.0,95673.0,0.0004]
[1732554472718,0.3608,95677.0,95646.0,0.02248822]
[1732554472719,0.0373,95675.0,95646.0,0.02248822]
[1732554473013,0.00072773,95647.0,95646.0,0.02248822]
[1732554473608,0.00072773,95647.0,95646.0,0.20744822]
[1732554473807,0.00072773,95647.0,95646.0,0.02248822]
[1732554474013,0.00072773,95647.0,95646.0,0.20744822]
[1732554474613,0.00072773,95647.0,95646.0,0.02248822]
[1732554474815,0.00072773,95647.0,95646.0,0.20744822]
[1732554475116,0.3608,95669.0,95646.0,0.52108822]
[1732554475320,0.3608,95669.0,95662.0,0.052259]
[1732554475529,0.3608,95669.0,95668.0,0.0004]
[1732554476617,0.0357,95676.0,95669.0,0.052255]
[1732554477017,0.0357,95676.0,95675.0,0.0004]
[1732554477223,0.3608,95677.0,95675.0,0.0004]
[1732554477613,0.3608,95677.0,95676.0,0.0004]
[1732554478617,0.3608,95677.0,95676.0,0.0318729]
[1732554478810,0.3608,95677.0,95676.0,0.18536]
[1732554479015,0.00010312,95692.0,95676.0,0.36129005]
[1732554479221,0.00010312,95692.0,95681.0,0.052249]
[1732554479516,0.00010312,95692.0,95681.0,0.052649]
[1732554481522,0.00010312,95692.0,95691.0,0.052243]
[1732554481722,0.00010312,95692.0,95691.0,0.237163]
[1732554481921,0.00010312,95692.0,95691.0,0.237563]
[1732554482621,0.00010312,95692.0,95691.0,0.0004]
[1732554482924,0.05234612,95692.0,95691.0,0.0004]
[1732554483323,0.05234612,95692.0,95676.0,9.005e-05]
[1732554483324,0.052251,95677.0,95676.0,9.005e-05]
[1732554483515,0.052252,95676.0,95643.0,0.052269]
[1732554483715,0.3608,95655.0,95644.0,0.18492]
[1732554484018,0.052264,95653.0,95644.0,0.18492]
[1732554484215,0.052265,95651.0,95646.0,0.03296632]
[1732554484420,0.3608,95647.0,95646.0,0.00156808]
[1732554484621,0.052275,95632.0,95622.0,0.02090916]
[1732554484821,0.3608,95632.0,95605.0,0.18492]
[1732554485016,0.3608,95632.0,95623.0,0.00011819]
[1732554485017,0.05228,95625.0,95623.0,0.00011819]
[1732554485217,0.3608,95624.0,95623.0,0.00011819]
[1732554485426,0.67452,95624.0,95623.0,2.444e-05]
[1732554486021,0.052285,95616.0,95607.0,0.052289]
[1732554486325,0.67452,95624.0,95599.0,0.03356599]
[1732554486326,0.3608,95610.0,95599.0,0.03356599]
[1732554486625,0.3608,95610.0,95608.0,0.052288]
[1732554487025,0.3608,95610.0,95609.0,0.00012842]
[1732554488132,0.05229,95607.0,95599.0,0.00156886]
[1732554488329,0.3608,95600.0,95599.0,0.00156886]
[1732554488519,0.3616,95600.0,95599.0,0.00156886]
[1732554488724,0.0008,95600.0,95599.0,0.05386186]
[1732554489119,0.0008,95600.0,95599.0,0.05395728]
[1732554489926,0.0008,95600.0,95599.0,0.00166428]
[1732554490125,0.0008,95600.0,95599.0,0.05395728]
[1732554490544,0.0008,95600.0,95599.0,0.23891728]
[1732554491032,0.0008,95600.0,95599.0,0.18662428]
[1732554491531,0.0008,95600.0,95599.0,0.00166428]
[1732554493023,0.3608,95622.0,95599.0,0.00166428]
[1732554493234,0.3608,95622.0,95610.0,0.19413948]
[1732554493530,0.3608,95622.0,95621.0,0.0004]
[1732554494520,0.3608,95622.0,95621.0,0.03137904]
[1732554494826,0.3608,95622.0,95621.0,0.0004]
[1732554494827,0.413081,95622.0,95621.0,0.0004]
[1732554496637,0.052286,95612.0,95611.0,0.03171051]
[1732554496827,0.3608,95612.0,95599.0,0.00166428]
[1732554497027,0.3608,95602.0,95599.0,0.00166428]
[1732554497226,0.3608,95602.0,95599.0,0.03377349]
[1732554497424,0.3608,95602.0,95600.0,0.052293]
[1732554497739,0.3608,95602.0,95599.0,0.03377349]
[1732554497934,0.052293,95601.0,95599.0,0.03377349]
[1732554498629,0.0004,95600.0,95599.0,0.03377349]
[1732554500035,0.3142,95600.0,95599.0,0.03377349]
[1732554501127,0.0004,95600.0,95599.0,0.03377349]
[1732554509138,0.49868,95600.0,95599.0,0.03220463]
[1732554509344,0.052296,95594.0,95574.0,0.413107]
[1732554509536,0.49868,95600.0,95580.0,0.05521067]
[1732554509537,0.3608,95589.0,95580.0,0.05521067]
[1732554509733,0.0004,95581.0,95580.0,0.02351521]
[1732554510249,0.0004,95581.0,95580.0,0.02360164]
[1732554510633,0.0004,95581.0,95580.0,0.02100164]
[1732554511033,0.0004,95581.0,95580.0,0.05211625]
[1732554511235,0.0004,95581.0,95580.0,0.02100164]
[1732554512034,0.0004,95581.0,95580.0,0.05184661]
[1732554512233,0.0004,95581.0,95580.0,0.02100164]
[1732554515644,0.0004,95581.0,95580.0,0.20552164]
[1732554517043,0.0004,95581.0,95580.0,0.02100164]
[1732554521842,0.09268868,95581.0,95580.0,0.02100164]
[1732554523536,0.0004,95581.0,95580.0,0.02100164]
[1732554523846,0.45355536,95581.0,95580.0,8.643e-05]
[1732554524048,0.3612,95581.0,95580.0,8.643e-05]
[1732554524539,0.44447247,95581.0,95564.0,0.01953424]
[1732554524846,0.0004,95565.0,95558.0,0.0332]
[1732554525048,0.09235854,95559.0,95558.0,0.0332]
[1732554525348,0.00949796,95559.0,95558.0,0.0332]
[1732554525543,0.00949796,95559.0,95558.0,0.06487074]
[1732554526341,0.10183448,95559.0,95558.0,0.06487074]
[1732554526545,0.0004,95559.0,95558.0,0.06487074]
[1732554526942,0.0004,95559.0,95558.0,0.03167074]
[1732554529547,0.052715,95559.0,95558.0,0.03167074]
[1732554530046,0.366675,95559.0,95558.0,0.03167074]
[1732554531148,0.366675,95559.0,95542.0,0.0026]
[1732554531149,0.31436,95559.0,95548.0,0.052321]
[1732554531337,0.3608,95550.0,95548.0,0.052321]
[1732554531541,0.0004,95549.0,95548.0,0.052321]
[1732554532146,0.0004,95549.0,95548.0,0.05243656]
[1732554533640,0.0004,95549.0,95548.0,0.00011556]
[1732554534447,0.00932758,95549.0,95548.0,0.00011556]
[1732554534648,0.00932758,95549.0,95547.0,0.04065845]
[1732554534852,0.09210859,95556.0,95555.0,0.052318]
[1732554535040,0.09210859,95558.0,95557.0,0.052316]
[1732554535244,0.09210859,95565.0,95563.0,0.052313]
[1732554535541,0.09210859,95566.0,95564.0,0.00051069]
[1732554535856,0.09210859,95566.0,95565.0,0.0004]
[1732554536040,0.3608,95566.0,95565.0,0.0004]
[1732554536454,0.48374584,95566.0,95565.0,0.0004]
[1732554536640,0.48374584,95566.0,95565.0,3.764e-05]
[1732554536847,0.3608,95566.0,95565.0,3.764e-05]
[1732554537048,0.413112,95566.0,95565.0,3.764e-05]
[1732554537247,0.53596954,95566.0,95565.0,3.764e-05]
[1732554537647,0.413112,95566.0,95565.0,3.764e-05]
[1732554539247,0.46400238,95566.0,95565.0,3.764e-05]
[1732554541047,0.77792238,95566.0,95565.0,3.764e-05]
[1732554542647,0.96084449,95566.0,95565.0,3.764e-05]
[1732554543562,0.96233309,95566.0,95565.0,3.764e-05]
[1732554543965,0.72561038,95566.0,95564.0,8.951e-05]
[1732554544161,0.052313,95564.0,95563.0,0.01989366]
[1732554544355,0.052322,95547.0,95546.0,0.052322]
[1732554544551,0.37607588,95547.0,95533.0,0.18452]